bitfinex-derivatives/quotes_ETHF0:USTF0_20250810
["timestamp","ask_amount","ask_price","bid_price","bid_amount"]
[1754797979729,2.8638,4250.3,4250.2,28.5546]
[1754797979927,3.6948,4250.3,4250.2,28.5546]
[1754797980130,3.6948,4250.3,4250.2,28.72009146]
[1754797980529,3.6948,4250.3,4250.2,28.71709146]
[1754797981127,3.6948,4250.3,4250.2,3.37329146]
[1754797981329,3.6948,4250.3,4250.2,21.962]
[1754797981721,1.4945,4249.7,4249.6,3.2078]
[1754797981921,2.2003,4250.7,4249.7,1.9387]
[1754797982130,3.6948,4249.9,4249.8,3.54625001]
[1754797982631,3.6948,4249.9,4249.8,24.72985001]
[1754797982834,3.6948,4249.9,4249.6,3.2078]
[1754797982835,1.4945,4249.7,4249.6,3.2078]
[1754797983026,3.6948,4249.7,4249.6,26.2088]
[1754797983226,3.6948,4249.7,4249.6,28.5466]
[1754797983829,3.6948,4250.3,4250.2,1.043]
[1754797984031,3.6948,4250.3,4250.2,24.5634]
[1754797984227,3.6948,4250.3,4250.2,25.3388]
[1754797984424,4.04772,4249.9,4249.8,2.6054]
[1754797984627,4.04772,4249.9,4249.8,21.957]
[1754797984828,4.04772,4249.9,4249.8,21.956]
[1754797985034,3.6948,4249.8,4249.7,1.043]
[1754797985233,3.6948,4249.8,4249.7,22.999]
[1754797985831,1.4459,4249.6,4249.5,4.2587]
[1754797986027,3.5763,4249.6,4249.5,4.42408381]
[1754797986232,3.5763,4249.6,4249.5,25.1618]
[1754797987034,3.5763,4249.4,4249.3,2.5858]
[1754797987335,3.5763,4249.4,4249.3,25.3373]
[1754797988137,1.528,4250.7,4249.4,1.92326]
[1754797988438,3.5763,4249.9,4249.8,5.4399]
[1754797988627,3.5763,4249.9,4249.8,25.1608]
[1754797989028,0.35293,4249.8,4249.5,0.7728]
[1754797989232,1.4459,4249.5,4249.3,3.2078]
[1754797989425,3.5763,4249.4,4249.3,3.7336]
[1754797989627,3.5763,4249.4,4249.3,26.37618133]
[1754797989824,3.5763,4249.4,4249.3,27.53268133]
[1754797990030,3.5763,4249.4,4249.3,28.70858133]
[1754797990231,0.7831,4249.9,4249.8,1.0509]
[1754797990428,2.1908,4249.9,4249.8,28.5431]
[1754797990936,3.5763,4250.5,4250.4,1.0509]
[1754797991132,3.5763,4250.5,4250.4,24.1531]
[1754797991334,3.5763,4250.5,4250.4,28.5421]
[1754797992733,3.5763,4250.5,4250.4,4.2587]
[1754797992924,3.5763,4250.5,4250.4,26.2087]
[1754797993124,3.5763,4250.5,4250.4,3.2078]
[1754797993324,3.5763,4250.5,4250.4,25.1568]
[1754797993528,3.5763,4250.5,4250.4,3.2078]
[1754797993729,3.5763,4250.5,4250.4,25.1568]
[1754797993936,3.5763,4250.5,4250.4,3.2078]
[1754797994131,3.5763,4250.5,4250.4,25.1558]
[1754797994331,0.54910225,4251.3,4250.4,25.1558]
[1754797994332,1.3473,4250.7,4250.4,26.94328]
[1754797994634,1.3473,4250.7,4250.6,3.3833]
[1754797994635,0.5068,4250.7,4250.6,3.3833]
[1754797995037,3.5763,4251.1,4251.0,3.0049]
[1754797995336,3.5763,4251.1,4251.0,24.9509]
[1754797995528,3.5763,4251.1,4251.0,25.3293]
[1754797996936,3.5763,4251.1,4251.0,24.5318]
[1754797997136,3.5763,4251.1,4251.0,24.1534]
[1754797997436,3.92912,4251.1,4251.0,21.946]
[1754797997933,3.5763,4251.1,4251.0,21.946]
[1754797998139,3.5763,4251.1,4251.0,25.3293]
[1754797998329,2.7932,4251.1,4251.0,25.3293]
[1754797998633,3.5763,4251.1,4251.0,25.3293]
[1754797999027,3.5763,4251.1,4251.0,22.9929]
[1754797999833,3.5763,4251.1,4251.0,1.0509]
[1754798000033,3.92913,4251.0,4250.9,3.2078]
[1754798000336,3.92913,4251.0,4250.9,25.1488]
[1754798000640,3.5763,4250.5,4250.4,6.5911]
[1754798001029,1.4459,4250.5,4250.4,28.5301]
[1754798001225,1.3473,4250.8,4250.4,26.93427]
[1754798001434,3.5763,4250.8,4250.7,3.3833]
[1754798002338,3.5763,4250.5,4250.4,4.2587]
[1754798002529,3.5763,4250.5,4250.4,28.5301]
[1754798003236,3.5763,4250.5,4250.4,27.7326]
[1754798003439,3.5763,4250.5,4250.4,5.4152]
[1754798003736,3.5763,4250.5,4250.4,3.2078]
[1754798003925,3.5763,4250.5,4250.4,25.1448]
[1754798004735,3.5763,4250.5,4250.4,3.2078]
[1754798004936,3.5763,4250.5,4250.4,25.1438]
[1754798005636,1.4459,4250.5,4250.4,4.2587]
[1754798005836,3.5763,4250.5,4250.4,25.1438]
[1754798006034,3.5763,4250.5,4250.4,26.1947]
[1754798006238,2.1304,4251.3,4250.4,28.5271]
[1754798006436,0.9089,4250.6,4250.5,3.3833]
[1754798007744,2.7932,4250.6,4250.5,3.37926151]
[1754798007932,3.5763,4250.6,4250.5,3.37926151]
[1754798008633,1.3473,4251.2,4250.5,2.96337]
[1754798008836,1.3473,4251.0,4250.5,2.96337]
[1754798009036,1.4459,4250.7,4250.6,2.5942]
[1754798009427,2.7932,4250.7,4250.6,2.5942]
[1754798009940,2.7932,4250.7,4250.6,3.367]
[1754798010139,3.5763,4250.7,4250.6,3.367]
[1754798010341,3.5763,4250.7,4250.6,25.301]
[1754798011141,1.4459,4250.7,4250.6,25.46608333]
[1754798011440,3.5763,4250.7,4250.6,25.46608333]
[1754798011640,3.5763,4250.7,4250.6,25.46601107]
[1754798013844,3.5763,4250.7,4250.6,28.67381107]
[1754798014230,3.5763,4250.7,4250.6,28.67381466]
[1754798014636,2.1908,4250.7,4250.6,28.67381466]
[1754798014840,3.5763,4250.7,4250.6,28.67381466]
[1754798015642,3.5763,4250.7,4250.6,29.17381466]
[1754798016937,0.3528,4251.4,4250.7,0.35285]
[1754798017144,3.5467,4250.9,4250.8,2.5111]
[1754798017337,3.5467,4250.9,4250.8,23.11014386]
[1754798017539,3.5467,4250.9,4250.8,22.945]
[1754798017844,1.4092,4250.7,4250.6,4.7248]
[1754798018044,3.5467,4250.7,4250.6,26.81695455]
[1754798018343,3.5467,4250.7,4250.6,28.71325455]
[1754798019652,3.5467,4250.7,4250.6,0.5]
[1754798021846,3.5467,4250.7,4250.6,22.426]
[1754798022444,3.5467,4250.7,4250.6,23.443]
[1754798022640,4.0975769,4251.1,4251.0,3.2909]
[1754798022946,3.89952,4251.1,4251.0,25.2149]
[1754798023342,0.5508769,4251.6,4250.6,5.082]
[1754798023343,3.5467,4250.7,4250.6,5.082]
[1754798023537,3.5467,4250.7,4250.6,27.9305577]
[1754798023746,3.5467,4250.7,4250.6,28.7103577]
[1754798024346,2.7633,4250.7,4250.6,28.7103577]
[1754798024547,2.188,4250.7,4250.6,28.7103577]
[1754798025348,0.8992,4250.7,4250.6,28.7103577]
[1754798026448,3.5467,4250.7,4250.6,28.7103577]
[1754798026844,3.5467,4250.7,4250.6,3.8730577]
[1754798027048,3.5467,4250.7,4250.6,25.6288]
[1754798027248,1.4092,4250.7,4250.6,27.1886134]
[1754798027549,3.5467,4250.7,4250.6,29.0849134]
[1754798027749,3.5467,4250.7,4250.6,26.8110134]
[1754798028250,3.5467,4250.7,4250.6,3.7078]
[1754798028451,3.5467,4250.7,4250.6,25.6278]
[1754798028953,3.5467,4250.7,4250.6,25.79548186]
[1754798029155,3.5467,4250.7,4250.6,26.3162782]
[1754798029857,3.5467,4250.7,4250.6,25.7954782]
[1754798030157,3.5467,4250.7,4250.6,25.6278]
[1754798031155,3.5467,4250.7,4250.6,3.7078]
[1754798031350,3.5467,4250.7,4250.6,25.6248]
[1754798031553,3.5467,4250.0,4249.9,33.89]
[1754798031755,3.5467,4250.0,4249.9,55.97473787]
[1754798032062,3.5467,4250.0,4249.9,23.10173787]
[1754798032354,3.5467,4250.0,4249.9,22.934]
[1754798032563,3.5467,4250.0,4249.9,22.933]
[1754798032961,1.4092,4249.7,4249.6,3.2078]
[1754798033160,3.5467,4249.7,4249.6,25.1238]
[1754798033355,3.5467,4249.7,4249.6,26.1408]
[1754798035062,3.5467,4249.7,4249.6,25.6446]
[1754798035755,3.5467,4249.7,4249.6,26.1408]
[1754798035964,3.5467,4249.7,4249.6,4.9841]
[1754798036366,3.5467,4249.7,4249.6,26.8981]
[1754798036566,3.5467,4249.7,4249.6,27.2757]
[1754798036864,3.5467,4249.7,4249.6,27.8797]
[1754798037768,0.5508769,4250.6,4249.6,27.8797]
[1754798037769,1.7621,4250.2,4250.1,1.3946]
[1754798038076,3.89962,4249.9,4249.8,1.017]
[1754798038264,3.5467,4249.9,4249.8,23.3086]
[1754798038470,3.5467,4249.9,4249.8,25.4517]
[1754798038769,1.4092,4250.0,4249.9,3.5377]
[1754798038976,3.5467,4250.0,4249.9,3.5377]
[1754798039176,0.8992,4250.0,4249.9,3.5377]
[1754798039375,2.188,4250.5,4250.4,1.3946]
[1754798039576,3.5467,4250.5,4250.4,25.4507]
[1754798040470,3.5467,4250.5,4250.4,24.6709]
[1754798040669,3.5467,4250.5,4250.4,22.93]
[1754798040871,3.5467,4250.5,4250.4,24.6709]
[1754798041071,3.5467,4250.5,4250.4,25.4507]
[1754798041371,2.188,4250.5,4250.4,25.4507]
[1754798041672,1.4092,4250.5,4250.4,25.4507]
[1754798042073,1.4092,4250.5,4250.4,25.61803224]
[1754798042676,3.5467,4250.5,4250.4,25.4507]
[1754798045081,3.5467,4250.5,4250.4,22.93]
[1754798045473,3.5467,4250.5,4250.4,1.017]
[1754798045679,4.0467,4250.5,4250.4,1.517]
[1754798045981,4.0467,4250.5,4250.4,0.5]
[1754798048177,1.36124,4249.7,4249.6,4.762]
[1754798048481,3.81184,4249.7,4249.6,27.9396868]
[1754798048671,3.81184,4249.7,4249.6,28.5661]
[1754798049478,3.81184,4249.7,4249.6,27.7721]
[1754798049676,3.81184,4249.7,4249.6,5.8661]
[1754798049876,3.81184,4249.7,4249.6,27.7721]
[1754798050475,3.81184,4249.7,4249.6,5.1455]
[1754798052182,3.81184,4249.7,4249.6,4.5976]
[1754798052579,3.81184,4249.7,4249.6,3.2078]
[1754798054784,2.0682,4249.6,4249.5,24.5633]
[1754798054972,3.4589,4249.6,4249.5,1.3898]
[1754798055172,0.4896,4249.3,4249.2,22.803]
[1754798055382,3.4589,4249.3,4249.2,24.5613]
[1754798056781,3.4589,4249.3,4249.2,1.3898]
[1754798056973,3.4589,4249.3,4249.2,23.2918]
[1754798057289,3.4589,4249.3,4249.2,1.3898]
[1754798057780,3.8119,4248.9,4248.8,6.6601]
[1754798057979,3.8119,4248.9,4248.8,28.5631]
[1754798059286,3.8119,4248.9,4248.8,6.6601]
[1754798059479,3.8119,4248.9,4248.8,5.8661]
[1754798060188,3.8119,4248.9,4248.8,6.6601]
[1754798061087,3.8119,4248.9,4248.8,5.8661]
[1754798061882,3.8119,4248.9,4248.8,6.6601]
[1754798062283,3.8119,4248.9,4248.8,5.8661]
[1754798062583,3.8119,4248.9,4248.8,3.4523]
[1754798067189,3.8119,4248.9,4248.8,2.6583]
[1754798069592,3.8119,4248.9,4248.7,21.901]
[1754798069892,3.4589,4248.8,4248.7,24.0428]
[1754798070092,3.4589,4248.8,4248.7,24.5593]
[1754798071296,3.4589,4248.8,4248.1,2.0625]
[1754798071594,3.4589,4248.3,4248.2,25.3473]
[1754798071788,3.81195,4248.3,4248.2,25.3473]
[1754798071988,3.81195,4248.3,4248.2,24.5533]
[1754798072188,3.81195,4248.3,4248.2,25.3473]
[1754798072383,3.81195,4248.3,4248.2,3.4523]
[1754798072585,3.81195,4248.3,4248.2,25.3463]
[1754798072796,3.81195,4248.3,4248.2,3.4523]
[1754798073197,3.81195,4248.3,4248.2,25.3463]
[1754798074391,3.81195,4248.3,4248.2,25.3453]
[1754798074592,3.81195,4248.3,4248.2,3.4523]
[1754798074795,3.81195,4248.3,4248.2,25.3443]
[1754798075996,4.31195,4248.3,4248.2,0.5]
[1754798076200,4.31195,4248.3,4248.2,3.2123]
[1754798076392,4.31195,4248.3,4248.2,0.5]
[1754798076592,7.51975,4248.3,4248.2,0.5]
[1754798076998,7.51975,4248.3,4248.2,0.00441]
[1754798077497,0.35312,4247.5,4247.4,2.7123]
[1754798077698,3.81102,4247.5,4247.4,3.4457]
[1754798079191,3.81102,4247.5,4247.4,1.9846]
[1754798079500,3.81104,4247.2,4247.1,3.4457]
[1754798081500,3.81104,4247.2,4247.1,2.7123]
[1754798081800,3.81104,4247.2,4247.1,1.9846]
[1754798082004,3.81104,4247.2,4247.1,3.4457]
[1754798082399,3.81104,4247.2,4247.1,2.7123]
[1754798084300,3.81104,4247.2,4247.1,1.9846]
[1754798085311,3.81104,4247.2,4247.1,0.8787]
[1754798086296,3.81104,4247.2,4247.1,1.4648]
[1754798086803,2.13489,4246.7,4246.6,25.3327]
[1754798087000,3.81109,4246.7,4246.6,25.3327]
[1754798087902,3.81109,4246.7,4246.6,3.4457]
[1754798100014,0.5,4247.2,4247.1,3.4457]
[1754798100214,0.5,4247.2,4247.1,25.3227]
[1754798100508,0.35318,4246.8,4246.7,3.2078]
[1754798100808,3.8111,4246.5,4246.4,2.7123]
[1754798101012,3.4579,4246.5,4246.4,25.3227]
[1754798101910,0.3532,4246.6,4246.5,3.4457]
[1754798103713,1.0973,4246.6,4246.5,25.3207]
[1754798105019,0.3532,4246.6,4246.5,25.3207]
[1754798105212,0.54996587,4247.3,4246.5,25.3207]
[1754798105213,0.90310587,4247.3,4247.2,0.8255]
[1754798105412,0.35314,4247.3,4247.2,25.1144]
[1754798106419,0.35314,4247.3,4247.2,25.27663199]
[1754798109120,1.11574,4247.3,4247.2,25.27663199]
[1754798109722,1.62544,4247.3,4247.2,3.40363199]
[1754798109921,3.78654,4247.3,4247.2,25.1114]
[1754798110317,3.78654,4247.3,4247.2,24.4135]
[1754798110521,1.72768,4246.8,4246.7,1.8426]
[1754798110713,3.22428,4246.8,4246.7,25.1094]
[1754798110918,2.11488,4246.8,4246.7,25.1094]
[1754798111416,3.22428,4246.8,4246.7,25.1094]
[1754798111616,3.78658,4246.8,4246.7,25.1094]
[1754798112327,3.78658,4246.8,4246.7,24.4115]
[1754798112512,3.78658,4246.8,4246.7,24.4095]
[1754798112916,3.78658,4246.8,4246.7,24.4085]
[1754798113118,3.78658,4246.8,4246.7,23.7076]
[1754798113318,3.78658,4246.8,4246.7,24.4085]
[1754798113512,3.78658,4246.8,4246.7,2.5435]
[1754798113716,3.78658,4246.8,4246.7,24.4075]
[1754798113918,3.78658,4246.8,4246.7,25.1054]
[1754798115328,3.78658,4246.8,4246.7,3.2414]
[1754798115625,3.78658,4246.8,4246.7,25.1054]
[1754798118328,3.78658,4246.8,4246.7,3.2414]
[1754798118524,3.78658,4246.8,4246.7,25.1024]
[1754798119829,4.28658,4246.8,4246.7,25.1024]
[1754798124134,4.28658,4246.8,4246.7,3.2414]
[1754798124337,4.28658,4246.8,4246.7,22.2087]
[1754798124926,7.49438,4246.8,4246.7,22.2087]
[1754798125129,7.49438,4246.8,4246.7,22.7532]
[1754798125335,7.49438,4246.8,4246.7,23.4541]
[1754798125537,7.49438,4246.8,4246.7,24.3975]
[1754798126039,7.49438,4246.8,4246.7,25.0954]
[1754798126336,7.49438,4246.8,4246.7,2.5435]
[1754798126537,7.49438,4246.8,4246.7,24.3975]
[1754798127440,7.49438,4246.8,4246.7,25.0954]
[1754798128142,4.28658,4246.8,4246.7,25.0944]
[1754798129136,3.53013108,4246.8,4245.7,1.3988]
[1754798129440,3.78661,4246.4,4246.3,1.2981]
[1754798129744,3.78661,4246.4,4246.1,23.0954]
[1754798129934,1.3745,4246.2,4246.1,23.9227]
[1754798130133,3.4334,4246.2,4246.1,23.9227]
[1754798130333,3.4334,4246.2,4246.1,24.3935]
[1754798130838,3.4334,4246.2,4246.1,25.0914]
[1754798131449,1.3249,4246.3,4246.2,3.2414]
[1754798131648,1.9368,4246.3,4246.2,3.2414]
[1754798131940,0.35326,4245.8,4245.7,3.2414]
[1754798132136,1.11586,4245.8,4245.7,25.0894]
[1754798132338,1.11586,4245.8,4245.7,3.2414]
[1754798132545,1.62556,4245.8,4245.7,25.0884]
[1754798133043,3.41126,4245.8,4245.7,25.0894]
[1754798133242,3.78666,4245.8,4245.7,25.0894]
[1754798134442,3.78666,4245.8,4245.7,3.2414]
[1754798134838,3.78666,4245.8,4245.7,1.8426]
[1754798135041,3.78666,4245.8,4245.7,24.3895]
[1754798135239,3.78666,4245.8,4245.7,25.1303]
[1754798135449,3.78666,4245.8,4245.7,3.2843]
[1754798135648,3.78666,4245.8,4245.7,25.1303]
[1754798137345,0.35325,4246.0,4245.9,3.322]
[1754798137545,0.35323,4246.2,4246.0,2.0098]
[1754798137843,0.5,4246.3,4246.2,3.322]
[1754798138146,0.5,4246.3,4246.2,25.52094064]
[1754798138451,0.3532,4246.6,4246.5,1.3122]
[1754798138641,0.3532,4246.6,4246.5,25.165]
[1754798139051,3.643,4246.6,4246.5,25.165]
[1754798140046,0.35322,4246.3,4246.2,0.5]
[1754798140351,2.93292,4246.3,4246.2,3.322]
[1754798140553,0.84602,4246.3,4246.2,3.322]
[1754798140752,1.54722,4246.3,4246.2,3.322]
[1754798141144,3.15402,4246.3,4246.2,3.322]
[1754798141345,4.14302,4246.3,4246.2,6.5298]
[1754798141653,4.14302,4246.3,4246.2,3.322]
[1754798141950,0.35326,4245.8,4245.7,3.322]
[1754798142150,0.35326,4245.8,4245.7,25.32404713]
[1754798144251,0.35326,4245.8,4245.7,0.16204713]
[1754798144558,3.6431,4245.3,4245.2,35.9298]
[1754798144753,3.6431,4245.3,4245.2,57.7678]
[1754798144956,2.3962,4245.3,4245.2,57.7678]
[1754798145156,0.8461,4245.3,4245.2,57.7678]
[1754798145958,1.5473,4245.3,4245.2,57.7678]
[1754798146260,0.8461,4245.3,4245.2,57.7678]
[1754798146470,0.3533,4245.3,4245.2,57.7678]
[1754798146968,0.3533,4245.3,4245.2,57.7658]
[1754798146969,1.5473,4245.3,4245.2,57.7658]
[1754798147171,2.2574,4245.3,4245.2,57.7658]
[1754798147374,3.1541,4245.3,4245.2,57.7658]
[1754798147975,3.6431,4245.3,4245.2,57.7658]
[1754798148670,3.6431,4245.3,4245.2,35.9298]
[1754798148873,3.6431,4245.3,4245.2,57.7668]
[1754798149775,2.444,4245.3,4245.2,57.7668]
[1754798149970,0.3533,4245.3,4245.2,57.7668]
[1754798150277,0.3533,4245.3,4245.2,57.7658]
[1754798150668,0.8533,4245.3,4245.2,57.7658]
[1754798150976,0.5,4245.3,4245.2,57.7658]
[1754798151266,0.35329,4245.5,4245.2,57.7658]
[1754798151267,1.05444,4246.0,4245.9,1.3122]
[1754798151469,0.35324,4246.1,4245.9,28.1249]
[1754798151776,0.35323,4246.2,4246.1,3.0811]
[1754798152074,0.35323,4246.2,4246.1,24.9151]
[1754798154068,3.64303,4246.2,4245.9,3.2078]
[1754798154269,1.3417,4245.6,4245.5,5.5481]
[1754798154476,3.2898,4245.6,4245.5,28.1209]
[1754798155976,3.64309,4245.6,4245.5,28.1209]
[1754798156377,2.93299,4245.6,4245.5,28.27593185]
[1754798156577,1.20599,4245.6,4245.5,28.27593185]
[1754798158580,1.5539,4245.6,4245.5,28.27593185]
[1754798159183,3.2898,4245.6,4245.5,28.27593185]
[1754798159380,3.2898,4245.6,4245.5,28.27283185]
[1754798161880,3.28613589,4245.6,4245.5,28.27283185]
[1754798162081,3.28613589,4245.6,4245.5,28.27271836]
[1754798164183,3.28613589,4245.6,4245.5,25.19471836]
[1754798164486,3.28613589,4245.6,4245.5,25.18671836]
[1754798165086,3.28613589,4245.6,4245.5,25.0308]
[1754798165583,3.78613589,4245.6,4245.5,25.5308]
[1754798166184,3.78613589,4245.6,4245.5,3.7078]
[1754798166384,3.78613589,4245.6,4244.8,3.2078]
[1754798166385,1.3543,4244.9,4244.8,3.2078]
[1754798166584,1.3543,4244.9,4244.8,25.0298]
[1754798166585,3.3673,4244.9,4244.8,25.0298]
[1754798166885,3.72064,4244.9,4244.8,3.2078]
[1754798167785,3.3673,4244.4,4244.3,3.2078]
[1754798167985,2.6432,4244.4,4244.3,28.3745]
[1754798168193,3.3673,4244.4,4244.3,12.5535]
[1754798168394,3.3673,4244.4,4244.3,34.3735]
[1754798171488,0.35336,4244.6,4244.3,32.367]
[1754798171788,3.7206,4245.2,4245.1,1.3392]
[1754798171986,3.7206,4245.2,4245.1,25.1667]
[1754798172183,0.85326,4245.6,4245.1,23.7235]
[1754798172392,2.8818,4245.3,4245.2,2.4981]
[1754798172692,3.3673,4245.3,4245.2,3.3457]
[1754798173082,2.0987,4245.3,4245.2,3.3457]
[1754798173282,1.7099,4245.4,4245.3,2.9898]
[1754798173482,3.3673,4245.4,4245.3,25.1657]
[1754798174189,0.5,4245.6,4245.3,24.4701]
[1754798174493,1.7447,4245.6,4245.5,3.3457]
[1754798174690,2.6577,4245.6,4245.5,25.1647]
[1754798174887,3.8673,4245.6,4245.5,25.1647]
[1754798175293,3.8673,4245.6,4245.5,24.4691]
[1754798175885,3.3673,4245.3,4245.2,2.6501]
[1754798176094,3.3673,4245.3,4245.2,24.4691]
[1754798176395,3.3673,4245.3,4245.2,23.1582]
[1754798179100,3.3673,4245.3,4245.2,21.819]
[1754798179300,3.3673,4244.9,4244.8,6.5535]
[1754798179499,3.72062,4244.9,4244.8,25.3142951]
[1754798180195,3.72062,4244.9,4244.8,24.4641]
[1754798181197,0.35335,4244.6,4244.3,3.2078]
[1754798181404,3.3673,4244.4,4244.3,6.5535]
[1754798181594,3.3673,4244.4,4244.3,28.3665]
[1754798186707,3.3673,4244.4,4244.3,6.5535]
[1754798186909,3.3673,4244.4,4244.3,28.3635]
[1754798187107,3.3673,4244.4,4244.3,5.8579]
[1754798187297,3.3673,4244.4,4244.3,27.6679]
[1754798187501,3.3673,4244.4,4244.3,26.0011]
[1754798187707,3.3673,4244.4,4244.3,5.8579]
[1754798187907,3.3673,4244.4,4244.3,27.6669]
[1754798188301,3.3673,4244.4,4244.3,28.3625]
[1754798188496,0.35334,4244.8,4244.4,1.2589]
[1754798188697,0.35334,4244.8,4244.7,3.3457]
[1754798189005,3.72064,4244.8,4244.7,25.1547]
[1754798190602,3.72064,4244.8,4244.7,24.4591]
[1754798191310,3.72064,4244.8,4244.7,2.6501]
[1754798191511,3.72064,4244.8,4244.7,23.1462]
[1754798191710,3.72064,4244.8,4244.7,22.7903]
[1754798192204,3.72064,4244.8,4244.7,24.4571]
[1754798192412,3.72064,4244.8,4244.7,25.1527]
[1754798194702,3.3673,4244.8,4244.7,25.1527]
[1754798195203,3.3673,4244.8,4244.7,24.4571]
[1754798195405,3.8673,4244.8,4244.7,24.4571]
[1754798195914,3.8673,4244.8,4244.7,25.1732]
[1754798197308,3.8673,4244.8,4244.7,24.4571]
[1754798197508,3.8673,4244.8,4244.7,0.9833]
[1754798197712,3.2277,4244.5,4244.4,2.5359]
[1754798198006,3.2277,4244.5,4244.4,24.49294942]
[1754798198211,3.2277,4244.5,4244.4,25.21214942]
[1754798199007,3.2277,4244.5,4244.4,3.41014942]
[1754798199214,3.2277,4244.5,4244.4,25.21014942]
[1754798199416,3.2277,4244.5,4244.4,28.41794942]
[1754798203619,3.2277,4244.5,4244.4,25.16284942]
[1754798203918,3.2277,4244.5,4244.4,25.16298826]
[1754798204117,3.2277,4244.5,4244.4,25.15998826]
[1754798204513,3.2277,4244.5,4244.4,0.15518826]
[1754798204714,3.2277,4244.5,4244.4,21.95121067]
[1754798205418,1.88944,4244.7,4244.6,1.3066]
[1754798205619,1.88944,4244.7,4244.6,25.0501]
[1754798205620,3.12694,4244.7,4244.6,25.0501]
[1754798205823,3.58104,4244.7,4244.6,25.0501]
[1754798206009,3.58104,4244.7,4244.6,25.20535093]
[1754798206610,1.9902,4244.7,4244.6,25.20535093]
[1754798207215,0.85333,4244.8,4244.7,3.2551]
[1754798207216,0.5,4244.8,4244.7,3.2551]
[1754798207424,0.5,4244.8,4244.7,3.41035093]
[1754798208713,3.7277,4244.8,4244.7,24.14595093]
[1754798208921,3.7277,4244.8,4244.7,25.20335093]
[1754798209421,1.55341,4245.1,4244.7,25.20335093]
[1754798209722,3.58101,4245.1,4245.0,3.2551]
[1754798209924,3.58101,4245.1,4245.0,25.20135093]
[1754798214126,3.58101,4245.1,4245.0,24.48525093]
[1754798214321,3.58101,4245.1,4245.0,25.20135093]
[1754798214821,3.2277,4245.1,4245.0,25.20135093]
[1754798219834,3.2277,4245.1,4245.0,21.94625093]
[1754798220628,3.2277,4245.1,4245.0,21.791]
[1754798220822,3.2277,4245.1,4244.8,3.2078]
[1754798220823,1.65841,4245.0,4244.9,21.78]
[1754798221029,3.58101,4245.0,4244.9,21.78]
[1754798221630,3.58101,4245.0,4244.8,3.2078]
[1754798221833,3.2277,4244.9,4244.8,24.9868]
[1754798222130,3.2277,4244.9,4244.8,3.2078]
[1754798222335,3.2277,4244.9,4244.6,21.778]
[1754798222336,3.2277,4244.7,4244.6,21.778]
[1754798223141,3.7277,4244.7,4244.6,21.778]
[1754798225641,1.2403,4244.3,4244.2,2.487]
[1754798225840,3.52106,4244.3,4244.2,25.12261041]
[1754798226041,3.52106,4244.3,4244.2,23.19231041]
[1754798226333,3.52106,4244.3,4244.2,22.83311041]
[1754798226643,3.52106,4244.3,4244.2,22.6714]
[1754798227032,0.35339,4244.0,4243.9,4.8425]
[1754798227344,3.52109,4244.0,4243.9,28.29278876]
[1754798228239,3.52109,4244.0,4243.9,25.08498876]
[1754798229041,3.52109,4244.0,4243.9,25.08486209]
[1754798230044,3.52109,4244.0,4243.9,21.93456209]
[1754798230345,3.52109,4244.0,4243.9,21.773]
[1754798231045,1.59372,4243.7,4243.6,1.2546]
[1754798231239,2.27492,4243.7,4243.6,21.772]
[1754798231445,2.27492,4243.7,4243.6,24.2214]
[1754798231636,3.52112,4243.7,4243.6,24.9193]
[1754798232141,3.52112,4243.7,4243.6,24.2214]
[1754798233156,3.52112,4243.7,4243.6,24.9193]
[1754798235851,2.38962,4243.7,4243.6,24.9193]
[1754798236056,0.35342,4243.7,4243.6,24.9193]
[1754798236457,3.52112,4243.7,4243.6,24.9193]
[1754798237753,3.52112,4243.7,4243.6,3.1473]
[1754798238056,3.52112,4243.7,4243.6,24.9183]
[1754798240562,4.02112,4243.7,4243.6,24.9183]
[1754798241057,4.02112,4243.7,4243.6,24.9153]
[1754798241257,0.35343,4243.5,4243.4,3.2078]
[1754798241456,1.59378,4242.9,4242.8,2.4494]
[1754798241661,3.52118,4242.9,4242.8,1.2546]
[1754798242358,3.52118,4242.9,4242.8,0.8954]
[1754798243750,2.31003,4242.3,4242.2,3.1473]
[1754798243955,3.52123,4242.3,4242.2,24.9143]
[1754798244251,0.56190794,4243.3,4242.2,21.766]
[1754798244252,0.35353,4242.4,4242.2,21.766]
[1754798244460,2.30995,4243.3,4243.2,1.2546]
[1754798244760,3.52115,4243.3,4243.2,3.1473]
[1754798244956,0.35344,4243.4,4243.2,23.0196]
[1754798245255,0.35344,4243.5,4243.4,3.1473]
[1754798245458,0.5,4243.7,4243.6,1.2546]
[1754798245667,0.5,4243.7,4243.6,24.9123]
[1754798247957,1.6671,4243.7,4243.6,24.9123]
[1754798248264,2.5362,4243.7,4243.6,24.9123]
[1754798248662,3.6677,4243.7,4243.6,24.9123]
[1754798250562,3.6677,4243.7,4243.6,24.2144]
[1754798251065,3.6677,4243.7,4243.6,24.9123]
[1754798255164,3.1677,4243.4,4243.3,6.3448]
[1754798255365,1.0323,4243.6,4243.5,1.2776]
[1754798255566,0.85339,4243.7,4243.6,3.1657]
[1754798256466,1.53229,4243.7,4243.6,3.1657]
[1754798256659,2.47249,4243.7,4243.6,3.1657]
[1754798257970,0.5,4243.7,4243.6,3.1657]
[1754798259269,3.1075,4243.4,4243.3,6.3735]
[1754798259863,1.0323,4243.6,4243.4,1.8881]
[1754798260068,1.4714,4243.6,4243.5,23.0296]